bitfinex-derivatives/quotes_SOLF0:USTF0_20250117
["timestamp","ask_amount","ask_price","bid_price","bid_amount"]
[1737131440883,17.26226848,221.28,221.09,4.5217]
[1737131441079,17.26226848,221.28,221.08,17.26226848]
[1737131441589,4.5204,221.17,221.1,4.5216]
[1737131441783,4.5204,221.17,221.08,17.26226848]
[1737131441981,4.5204,221.17,221.11,4.5214]
[1737131442182,4.5208,221.14,221.08,17.26226848]
[1737131442635,17.26226848,221.24,221.08,17.26226848]
[1737131442784,4.5217,221.1,221.0,17.26226848]
[1737131443081,17.26226848,221.2,221.04,17.26226848]
[1737131443484,4.5209,221.14,221.08,4.5219]
[1737131443877,4.5209,221.14,221.04,17.26226848]
[1737131444079,17.26226848,221.24,221.1,4.5216]
[1737131444283,17.26226848,221.24,221.08,17.26226848]
[1737131444583,17.26226848,221.28,221.08,17.26226848]
[1737131444784,4.5203,221.17,221.12,4.5212]
[1737131445083,17.26226848,221.24,220.99,13.59]
[1737131445383,17.26226848,221.24,221.05,17.26226848]
[1737131446186,4.52,221.19,221.08,4.522]
[1737131446483,17.26226848,221.24,221.05,17.26226848]
[1737131446880,17.26226848,221.24,221.09,4.5217]
[1737131447476,17.26226848,221.24,221.05,17.26226848]
[1737131447677,17.26226848,221.28,221.09,17.26226848]
[1737131447876,0.72471095,221.27,221.09,17.26226848]
[1737131448187,4.5204,221.16,221.11,4.5214]
[1737131448385,17.26226848,221.28,221.09,17.26226848]
[1737131448685,4.3215,221.29,221.09,17.26226848]
[1737131448895,17.26226848,221.25,221.09,17.26226848]
[1737131450071,4.5201,221.18,221.13,4.521]
[1737131450197,4.5201,221.18,221.09,17.26226848]
[1737131451901,4.5199,221.19,221.09,17.26226848]
[1737131452294,17.26226848,221.25,221.14,4.5207]
[1737131452493,4.5201,221.18,221.14,4.5207]
[1737131452698,17.26226848,221.25,221.09,17.26226848]
[1737131453210,4.52,221.19,221.09,17.26226848]
[1737131453394,17.26226848,221.25,221.14,4.5207]
[1737131453800,4.52,221.19,221.14,4.5207]
[1737131454192,17.26226848,221.25,221.12,4.5212]
[1737131454597,4.5204,221.17,221.09,17.26226848]
[1737131454796,4.5204,221.17,221.13,4.521]
[1737131455197,17.26226848,221.25,221.13,4.521]
[1737131455402,17.26226848,221.25,220.99,17.26226848]
[1737131455403,17.26226848,221.21,220.99,17.26226848]
[1737131455605,1.4389,221.2,220.99,17.26226848]
[1737131456197,17.26226848,221.13,220.95,17.26226848]
[1737131456603,17.26226848,221.13,221.0,4.5237]
[1737131457307,17.26226848,221.13,220.95,17.26226848]
[1737131457308,4.5225,221.07,221.01,4.5234]
[1737131457602,17.26226848,221.13,220.95,17.26226848]
[1737131457800,4.5221,221.08,220.98,4.524]
[1737131458104,17.26226848,221.13,220.98,4.524]
[1737131458306,17.26226848,221.13,220.95,17.26226848]
[1737131458307,4.5236,221.01,220.95,4.5246]
[1737131458499,17.26226848,221.05,220.87,17.26226848]
[1737131458705,3.1359,221.04,220.83,17.26226848]
[1737131458901,4.5242,220.98,220.9,4.5255]
[1737131459199,3.1359,221.04,220.83,17.26226848]
[1737131460101,3.1359,221.04,220.91,17.26226848]
[1737131461296,4.5232,221.03,220.91,17.26226848]
[1737131461500,3.1359,221.04,220.91,17.26226848]
[1737131462197,3.1359,221.04,220.96,4.5243]
[1737131462403,3.1359,221.04,220.91,17.26226848]
[1737131462703,4.525,220.94,220.82,17.26226848]
[1737131463093,17.26226848,220.99,220.8,27.52164075]
[1737131463303,17.26226848,220.99,220.84,4.5268]
[1737131463699,4.5262,220.88,220.82,4.5272]
[1737131463907,4.5262,220.88,220.66,6.10794317]
[1737131463908,17.26226848,220.91,220.73,17.26226848]
[1737131464205,4.5278,220.81,220.75,4.5288]
[1737131464499,17.26226848,220.87,220.56,6.10794317]
[1737131464705,17.26226848,220.83,220.64,17.26226848]
[1737131464920,17.26226848,220.83,220.69,4.5299]
[1737131464921,4.5286,220.76,220.69,4.5299]
[1737131465093,4.5286,220.76,220.64,17.26226848]
[1737131465094,17.26226848,220.83,220.64,17.26226848]
[1737131466105,4.5278,220.81,220.74,4.529]
[1737131466403,1.4983,220.86,220.68,17.26226848]
[1737131466603,4.5273,220.83,220.68,17.26226848]
[1737131466806,1.4983,220.86,220.72,17.26226848]
[1737131467034,1.4983,220.86,220.68,17.26226848]
[1737131467200,17.26226848,220.82,220.64,17.26226848]
[1737131468496,1.4937,220.81,220.64,17.26226848]
[1737131470399,4.528,220.8,220.64,17.26226848]
[1737131471249,4.528,220.8,220.73,4.5292]
[1737131471408,4.528,220.8,220.64,17.26226848]
[1737131471608,4.527,220.84,220.68,17.26226848]
[1737131471901,1.4983,220.86,220.72,17.26226848]
[1737131472109,4.5268,220.85,220.76,4.5286]
[1737131472304,4.5268,220.85,220.72,17.26226848]
[1737131472709,1.4983,220.86,220.82,4.5274]
[1737131473408,1.5343,220.89,220.83,4.527]
[1737131473608,17.26226848,220.95,220.76,17.26226848]
[1737131473912,17.26226848,220.95,220.85,4.5267]
[1737131474102,17.26226848,220.95,220.76,17.26226848]
[1737131474303,17.26226848,220.95,220.66,30.85226848]
[1737131474304,3.0232,220.97,220.8,17.26226848]
[1737131474509,4.5251,220.94,220.89,4.5259]
[1737131474709,3.0232,220.97,220.84,17.26226848]
[1737131475008,4.5246,220.96,220.9,4.5257]
[1737131477108,7.5476,220.97,220.92,4.5253]
[1737131477309,17.26226848,221.03,220.84,17.26226848]
[1737131477708,4.5237,221.0,220.94,4.5248]
[1737131477906,4.5237,221.0,220.88,17.26226848]
[1737131478208,17.26226848,221.03,220.94,4.5248]
[1737131478709,17.26226848,221.03,220.84,17.26226848]
[1737131479207,17.26226848,220.99,220.84,17.26226848]
[1737131479509,4.525,220.94,220.89,4.5258]
[1737131479907,17.26226848,220.99,220.84,17.26226848]
[1737131480104,4.5239,221.0,220.88,17.26226848]
[1737131480305,17.26226848,221.07,220.88,17.26226848]
[1737131480710,4.5231,221.03,220.88,17.26226848]
[1737131480910,17.26226848,221.07,220.88,17.26226848]
[1737131481504,4.3788,221.09,220.88,17.26226848]
[1737131481704,17.26226848,221.08,220.88,17.26226848]
[1737131481912,4.5233,221.02,220.97,4.5241]
[1737131482414,17.26226848,221.08,220.92,17.26226848]
[1737131482617,17.26226848,221.08,221.0,4.5235]
[1737131483614,17.26226848,221.08,220.92,17.26226848]
[1737131483615,4.5234,221.02,220.92,17.26226848]
[1737131484012,4.5236,221.01,220.96,4.5243]
[1737131485064,17.26226848,221.08,220.99,4.5238]
[1737131485219,17.26226848,221.08,220.92,17.26226848]
[1737131485713,4.3788,221.09,220.92,17.26226848]
[1737131486017,4.5225,221.06,221.01,4.5233]
[1737131486219,4.3788,221.09,220.92,17.26226848]
[1737131486619,4.5227,221.06,221.01,4.5234]
[1737131486818,4.3788,221.09,220.92,17.26226848]
[1737131487223,4.5222,221.08,221.04,4.5228]
[1737131487521,4.3788,221.09,220.96,17.26226848]
[1737131487721,17.26226848,221.15,220.96,17.26226848]
[1737131487927,1.4239,221.14,221.0,17.26226848]
[1737131488420,4.5215,221.11,221.07,4.5222]
[1737131488617,1.4239,221.14,221.07,4.5222]
[1737131489017,4.5215,221.11,221.0,17.26226848]
[1737131489815,4.5215,221.11,221.03,4.523]
[1737131490029,4.5215,221.11,221.0,17.26226848]
[1737131490325,4.5219,221.09,221.05,4.5225]
[1737131490522,1.4239,221.14,221.0,17.26226848]
[1737131491023,5.9447,221.14,221.1,4.5215]
[1737131491225,5.9447,221.14,221.0,17.26226848]
[1737131492236,5.9447,221.14,221.1,4.5215]
[1737131492457,5.9447,221.14,221.04,17.26226848]
[1737131492458,4.5202,221.18,221.04,17.26226848]
[1737131492646,1.5004,221.19,221.08,17.26226848]
[1737131492835,1.5068,221.2,221.15,4.5205]
[1737131493125,1.5068,221.2,221.08,17.26226848]
[1737131493827,6.0264,221.2,221.16,4.5204]
[1737131494724,4.5194,221.22,221.17,4.5202]
[1737131495029,1.4626,221.25,221.12,17.26226848]
[1737131495226,4.5188,221.25,221.2,4.5196]
[1737131495424,1.4848,221.29,221.12,17.26226848]
[1737131496630,4.5188,221.24,221.17,4.5202]
[1737131496850,4.5188,221.24,221.12,17.26226848]
[1737131497231,4.5188,221.24,221.15,4.5205]
[1737131497426,4.5188,221.24,221.12,17.26226848]
[1737131497928,1.4848,221.29,221.18,4.5198]
[1737131497929,4.519,221.23,221.18,4.5198]
[1737131498125,4.519,221.23,221.12,17.26226848]
[1737131498327,1.4848,221.29,221.12,17.26226848]
[1737131498532,4.5185,221.26,221.22,4.5191]
[1737131499231,4.5186,221.25,221.22,4.5191]
[1737131499537,1.4848,221.29,221.12,17.26226848]
[1737131500732,4.5193,221.22,221.18,4.52]
[1737131500927,1.4848,221.29,221.12,17.26226848]
[1737131501130,17.26226848,221.26,221.08,17.26226848]
[1737131501429,17.26226848,221.22,221.04,17.26226848]
[1737131501631,17.26226848,221.18,220.99,27.0135918]
[1737131501933,4.5218,221.1,221.0,0.90497737]
[1737131502829,4.5214,221.12,221.06,4.5224]
[1737131503029,4.5214,221.12,221.0,0.90497737]
[1737131503233,1.4261,221.17,221.0,0.90497737]
[1737131503532,1.4261,221.17,221.05,4.5227]
[1737131504029,17.26226848,221.14,220.99,27.0135918]
[1737131504429,17.26226848,221.1,220.93,21.59830339]
[1737131504731,17.26226848,221.06,220.94,4.5248]
[1737131505227,1.4926,221.05,220.93,4.33603491]
[1737131505432,1.4926,221.05,220.85,17.26226848]
[1737131505433,17.26226848,221.02,220.85,17.26226848]
[1737131507030,4.5248,220.95,220.89,4.5259]
[1737131507230,17.26226848,220.98,220.78,17.26226848]
[1737131507532,4.5254,220.92,220.78,17.26226848]
[1737131507726,1.4412,220.97,220.78,17.26226848]
[1737131507930,1.4724,220.96,220.78,17.26226848]
[1737131508848,1.4724,220.96,220.82,17.26226848]
[1737131509433,5.997,220.96,220.9,4.5257]
[1737131509626,1.4724,220.96,220.82,17.26226848]
[1737131510431,1.4724,220.96,220.92,4.5253]
[1737131510654,1.4724,220.96,220.82,17.26226848]
[1737131511137,1.4926,221.05,220.86,17.26226848]
[1737131511328,2.9864,221.04,220.86,17.26226848]
[1737131511542,4.5241,220.99,220.94,4.5249]
[1737131511734,4.5241,220.99,220.86,17.26226848]
[1737131511934,2.9864,221.04,220.86,17.26226848]
[1737131512331,4.5241,220.98,220.92,4.5251]
[1737131512536,2.9864,221.04,220.86,17.26226848]
[1737131513238,4.5241,220.98,220.86,17.26226848]
[1737131513636,2.9864,221.04,220.86,17.26226848]
[1737131513940,17.26226848,220.97,220.78,17.26226848]
[1737131514338,4.5267,220.86,220.81,4.5275]
[1737131514742,4.5308,220.92,220.74,17.26226848]
[1737131515462,4.5264,220.87,220.74,17.26226848]
[1737131515677,4.5308,220.92,220.74,17.26226848]
[1737131516355,17.26226848,220.89,220.7,17.26226848]
[1737131516551,17.26226848,220.89,220.75,4.5287]
[1737131516953,17.26226848,220.89,220.7,17.26226848]
[1737131517143,17.26226848,220.89,220.74,17.26226848]
[1737131517340,4.5308,220.92,220.74,17.26226848]
[1737131517545,4.5267,220.86,220.8,4.5277]
[1737131517841,4.5267,220.86,220.74,17.26226848]
[1737131518444,4.5266,220.87,220.74,17.26226848]
[1737131518640,4.5308,220.92,220.78,17.26226848]
[1737131518941,4.5308,220.92,220.85,4.5267]
[1737131519439,4.5308,220.92,220.78,17.26226848]
[1737131519641,4.5259,220.9,220.78,17.26226848]
[1737131520741,17.26226848,221.01,220.82,17.26226848]
[1737131520942,1.5771,221.0,220.71,13.59]
[1737131521236,4.5262,220.88,220.8,17.26226848]
[1737131521437,17.26226848,220.96,220.89,4.5259]
[1737131521644,4.5247,220.96,220.84,17.26226848]
[1737131521839,18.83936848,221.0,220.84,17.26226848]
[1737131522037,18.83936848,221.0,220.91,4.5255]
[1737131522240,4.5247,220.95,220.84,17.26226848]
[1737131522441,18.83936848,221.0,220.88,17.26226848]
[1737131522442,1.5771,221.0,220.88,17.26226848]
[1737131522637,1.5771,221.0,220.94,4.5249]
[1737131522842,1.5771,221.0,220.88,17.26226848]
[1737131522843,4.5241,220.99,220.88,17.26226848]
[1737131523245,1.5771,221.0,220.95,4.5247]
[1737131523474,1.4964,221.05,220.92,17.26226848]
[1737131524042,1.4456,221.09,220.96,17.26226848]
[1737131524647,1.4456,221.09,221.04,4.5229]
[1737131525044,1.4456,221.09,221.02,4.5231]
[1737131525345,1.4456,221.09,221.0,17.26226848]
[1737131526148,1.4456,221.09,221.04,4.5228]
[1737131526349,1.4456,221.09,221.0,17.26226848]
[1737131526550,1.5413,221.13,221.0,17.26226848]
[1737131527347,1.5413,221.13,220.88,30.85226848]
[1737131527348,1.5413,221.13,220.96,17.26226848]
[1737131527562,1.4391,221.12,220.96,17.26226848]
[1737131527850,17.26226848,221.1,220.92,17.26226848]
[1737131528799,17.26226848,221.06,220.88,17.26226848]
[1737131528947,1.5495,221.05,220.88,17.26226848]
[1737131529651,1.5495,221.05,220.92,17.26226848]
[1737131530250,1.4391,221.12,220.96,17.26226848]
[1737131530446,1.5495,221.1,220.96,17.26226848]
[1737131530642,1.5495,221.1,220.97,4.5242]
[1737131530643,4.5233,221.03,220.97,4.5242]
[1737131530846,1.5495,221.1,220.92,17.26226848]
[1737131531975,1.5495,221.1,221.02,4.5232]
[1737131532152,1.5495,221.1,220.96,17.26226848]
[1737131532355,6.0714,221.1,221.04,4.5228]
[1737131532551,1.5495,221.1,221.04,4.5228]
[1737131532756,1.5495,221.1,220.96,17.26226848]
[1737131532948,1.5495,221.1,221.0,17.26226848]
[1737131533347,1.5413,221.13,221.0,17.26226848]
[1737131533651,4.5213,221.12,221.03,4.5229]
[1737131533845,1.5413,221.13,221.0,17.26226848]
[1737131535165,4.5216,221.11,221.06,4.5224]
[1737131535554,1.5413,221.13,221.02,28.08122241]
[1737131536256,4.52,221.18,221.13,4.5209]
[1737131536445,2.9789,221.2,221.06,28.08122241]
[1737131536856,4.5202,221.18,221.12,4.521]
[1737131537054,4.5202,221.18,221.06,28.08122241]
[1737131537357,2.9789,221.2,221.06,28.08122241]
[1737131537751,4.5204,221.16,221.1,4.5216]
[1737131537951,4.5204,221.16,221.06,28.08122241]
[1737131538451,2.9789,221.2,221.02,28.08122241]
[1737131538654,31.06012241,221.2,221.02,28.08122241]
[1737131538959,4.5212,221.13,221.02,28.08122241]
[1737131539152,2.9789,221.2,221.02,28.08122241]
[1737131539352,2.9789,221.2,221.07,28.08122241]
[1737131539555,4.5202,221.18,221.07,28.08122241]
[1737131539854,2.9789,221.2,221.07,28.08122241]
[1737131540355,4.5203,221.17,221.07,28.08122241]
[1737131540950,4.5204,221.17,221.07,28.08122241]
[1737131541556,4.5204,221.17,221.13,4.5209]
[1737131541855,2.9789,221.2,221.07,28.08122241]
[1737131542061,2.9789,221.2,221.02,28.08122241]
[1737131542352,4.521,221.14,221.02,28.08122241]
[1737131542756,2.9789,221.2,221.1,4.5216]
[1737131543060,2.9789,221.2,221.02,28.08122241]
[1737131543257,2.9789,221.2,221.12,4.5212]
[1737131543555,2.9789,221.2,221.08,28.08122241]
[1737131543756,2.9789,221.2,221.04,28.08122241]
[1737131545773,28.08122241,221.19,220.99,28.08122241]
[1737131545957,2.9789,221.2,221.07,28.08122241]
[1737131546656,28.08122241,221.19,221.03,28.08122241]
[1737131546856,4.5217,221.1,221.03,28.08122241]
[1737131547054,28.08122241,221.19,221.03,28.08122241]
[1737131547450,4.5215,221.11,221.07,4.5222]
[1737131547656,28.08122241,221.19,221.03,28.08122241]
[1737131548048,4.5215,221.11,221.03,28.08122241]
[1737131548858,4.5212,221.13,221.08,4.522]
[1737131549051,2.9789,221.2,221.03,28.08122241]
[1737131549253,2.9789,221.2,221.1,4.5215]
[1737131549454,2.9789,221.2,221.07,28.08122241]
[1737131549455,1.5467,221.2,221.07,28.08122241]
[1737131549656,1.5467,221.2,220.99,28.08122241]
[1737131549657,1.4347,221.24,221.11,28.08122241]
[1737131550459,1.4951,221.26,221.15,28.08122241]
[1737131551061,3.0086,221.31,221.15,28.08122241]
[1737131551253,1.5487,221.31,221.19,28.08122241]
[1737131551556,1.4951,221.35,221.23,28.08122241]
[1737131551857,4.5171,221.33,221.23,28.08122241]
[1737131552859,1.4951,221.35,221.23,28.08122241]
[1737131552860,4.5178,221.29,221.23,28.08122241]
[1737131553355,4.5174,221.31,221.25,4.5185]
[1737131553557,1.4951,221.35,221.23,28.08122241]
[1737131553753,1.4951,221.35,221.19,28.08122241]
[1737131554150,4.5182,221.28,221.19,28.08122241]
[1737131554451,4.5182,221.28,221.1,28.08122241]
[1737131554452,1.4951,221.35,221.23,28.08122241]
[1737131554657,4.5172,221.32,221.26,4.5182]
[1737131555153,4.5172,221.32,221.23,28.08122241]
[1737131555763,4.5168,221.34,221.23,28.08122241]
[1737131556654,1.5487,221.39,221.21,28.08122241]
[1737131556962,1.5487,221.39,221.27,28.08122241]
[1737131557448,4.517,221.33,221.29,4.5178]
[1737131557566,4.517,221.33,221.27,28.08122241]
[1737131558156,1.5487,221.39,221.24,4.5187]
[1737131558662,4.5181,221.28,221.23,4.519]
[1737131558963,1.5487,221.39,221.21,28.08122241]
[1737131559364,1.5487,221.39,221.23,17.24952658]
[1737131560165,4.5174,221.31,221.26,4.5183]
[1737131560468,1.5487,221.39,221.27,17.24952658]
[1737131560662,1.5487,221.39,221.31,4.5172]
[1737131560663,4.5165,221.36,221.31,4.5172]
[1737131560968,1.5487,221.39,221.31,4.5172]
[1737131561175,1.5487,221.39,221.27,17.24952658]
[1737131561363,1.5487,221.39,221.23,17.24952658]
[1737131561865,1.5487,221.39,221.28,4.5179]
[1737131561866,4.5167,221.35,221.28,4.5179]
[1737131562066,1.5487,221.39,221.23,17.24952658]
[1737131562770,1.5487,221.39,221.29,4.5177]
[1737131562771,4.517,221.34,221.29,4.5177]
[1737131562971,1.5487,221.39,221.29,4.5177]
[1737131563783,1.5487,221.39,221.29,9.2177]
[1737131563970,4.5163,221.36,221.3,4.5176]
[1737131564171,1.5487,221.39,221.23,17.24952658]
[1737131564372,1.5487,221.39,221.24,4.7]
[1737131564569,1.5596,221.38,221.24,9.2186]
[1737131564817,1.5596,221.38,221.24,4.7]
[1737131564970,1.4478,221.37,221.24,4.7]
[1737131565172,4.5176,221.3,221.26,4.5184]
[1737131565475,1.4478,221.37,221.24,4.7]
[1737131565889,1.5487,221.39,221.24,4.7]
[1737131566073,4.5169,221.34,221.29,4.5177]
[1737131566375,4.5169,221.34,221.28,4.7]
[1737131566565,1.5487,221.39,221.28,4.7]
[1737131567576,1.5487,221.39,221.23,17.24952658]
[1737131567877,4.5173,221.32,221.24,4.7]
[1737131568072,1.5487,221.39,221.23,17.24952658]
[1737131568270,4.5175,221.31,221.27,4.518]
[1737131568576,1.4324,221.38,221.19,17.24952658]
[1737131568780,4.5186,221.25,221.21,4.5193]
[1737131569679,17.24952658,221.36,221.21,4.5193]
[1737131570120,17.24952658,221.36,221.22,4.5192]
[1737131570775,4.5186,221.26,221.22,4.5192]
[1737131571773,4.5186,221.25,221.19,21.94952658]
[1737131571970,17.24952658,221.36,221.19,21.94952658]
[1737131572220,17.24952658,221.36,221.19,4.7]
[1737131572478,17.24952658,221.32,221.19,9.2198]
[1737131572674,17.24952658,221.32,221.15,17.24952658]
[1737131572872,17.24952658,221.32,221.16,4.7]
[1737131573078,17.24952658,221.32,221.19,4.5198]
[1737131573286,17.24952658,221.32,221.16,4.7]
[1737131573779,17.24952658,221.36,221.22,4.5191]
[1737131574182,4.5184,221.27,221.22,4.5191]
[1737131574579,4.5185,221.26,221.22,4.5191]
[1737131575277,4.5185,221.26,221.23,4.519]
[1737131575479,4.5183,221.27,221.23,4.519]
[1737131575679,1.4222,221.37,221.19,17.24952658]
[1737131576081,1.4222,221.37,221.23,17.24952658]
[1737131576396,1.4222,221.37,221.27,17.24952658]
[1737131576579,1.4222,221.37,221.28,4.7]
[1737131577083,1.5487,221.39,221.28,4.7]
[1737131577485,4.5178,221.29,221.28,4.7]
[1737131580076,4.5175,221.31,221.26,4.5182]
[1737131580286,1.4556,221.35,221.26,4.5182]
[1737131580484,1.4556,221.35,221.24,4.7]
[1737131581187,1.4556,221.35,221.21,17.24952658]
[1737131581386,1.4556,221.35,221.21,21.94952658]
[1737131581780,4.5179,221.29,221.21,21.94952658]
[1737131581985,1.4556,221.35,221.21,21.94952658]
[1737131582286,4.5171,221.33,221.21,21.94952658]
[1737131582587,4.5171,221.33,221.27,17.24952658]
[1737131582887,4.5171,221.33,221.29,4.5176]
[1737131583088,4.5168,221.34,221.27,17.24952658]
[1737131583283,1.5487,221.39,221.29,4.5176]
[1737131583592,1.5487,221.39,221.27,17.24952658]
[1737131584586,1.5487,221.39,221.32,4.517]
[1737131584790,4.5162,221.37,221.31,4.72]
[1737131584992,4.5162,221.37,221.33,4.5168]
[1737131585180,4.5162,221.37,221.31,21.96952658]
[1737131585181,4.5167,221.35,221.31,21.96952658]
[1737131585382,1.5487,221.39,221.27,17.24952658]
[1737131585583,1.5487,221.39,221.26,4.72]
[1737131585788,4.5171,221.33,221.26,4.72]
[1737131586088,1.5487,221.39,221.27,4.518]
[1737131586290,4.5175,221.31,221.27,4.518]
[1737131586490,1.5487,221.39,221.26,4.72]
[1737131586886,4.518,221.29,221.26,4.72]
[1737131587087,1.5487,221.39,221.26,4.72]
[1737131587487,4.5167,221.35,221.26,4.72]
[1737131587692,1.5487,221.39,221.26,4.72]
[1737131588089,4.5179,221.29,221.26,4.72]
[1737131588291,1.5487,221.39,221.26,4.72]
[1737131588491,0.72413964,221.38,221.26,4.72]
[1737131588686,17.24952658,221.36,221.26,4.72]
[1737131588891,17.24952658,221.36,221.17,17.24952658]
[1737131588892,0.72413964,221.35,221.17,17.24952658]
[1737131589097,17.24952658,221.32,221.17,17.24952658]
[1737131589295,3.0776,221.31,221.17,17.24952658]
[1737131589892,1.5072,221.31,221.21,17.24952658]
[1737131590590,1.5704,221.38,221.25,17.24952658]
[1737131590796,4.5172,221.32,221.25,21.96952658]
[1737131591489,4.5174,221.31,221.27,4.5182]
[1737131591997,4.5174,221.31,221.26,4.5182]
[1737131592496,1.5704,221.38,221.25,21.96952658]
[1737131593694,4.5167,221.35,221.25,21.96952658]
[1737131593992,3.0559,221.39,221.25,21.96952658]
[1737131595696,4.516,221.38,221.33,4.5168]
[1737131595897,185.75677838,221.45,221.29,17.24952658]
[1737131596397,4.5157,221.4,221.36,4.5163]
[1737131596594,185.75677838,221.45,221.29,17.24952658]
[1737131596996,4.5156,221.4,221.35,4.5164]
[1737131597197,185.75677838,221.45,221.29,17.24952658]
[1737131597596,4.516,221.38,221.34,4.5167]
[1737131597797,185.75677838,221.45,221.29,17.24952658]
[1737131598196,185.75677838,221.45,221.36,4.5163]
[1737131598796,4.5155,221.41,221.36,4.5163]
[1737131598997,2.9112,221.46,221.35,4.5164]
[1737131599195,4.5156,221.4,221.35,4.5164]
[1737131599390,2.9112,221.46,221.33,17.24952658]
[1737131599592,2.9112,221.46,221.38,4.5159]
[1737131599796,4.5147,221.45,221.37,17.24952658]
[1737131599998,1.4234,221.46,221.37,17.24952658]
[1737131600499,1.5157,221.51,221.4,4.5154]
[1737131600705,1.5157,221.51,221.39,4.74]
[1737131600899,1.5157,221.51,221.36,4.74]
[1737131601106,17.97321783,221.5,221.36,4.74]
[1737131601306,17.24952658,221.5,221.36,4.74]
[1737131601509,4.515,221.43,221.36,4.74]
[1737131601902,1.5157,221.51,221.36,4.74]
[1737131602198,4.5147,221.45,221.41,4.5153]
[1737131602708,4.5147,221.44,221.4,4.5155]
[1737131603209,1.5157,221.51,221.38,4.5158]
[1737131603507,1.5157,221.51,221.37,21.98952658]
[1737131603902,1.5157,221.51,221.41,17.24952658]
[1737131604097,1.5157,221.51,221.37,4.74]
[1737131604302,1.5157,221.51,221.4,17.24952658]
[1737131604596,4.5141,221.47,221.43,4.5147]
[1737131605707,4.5146,221.45,221.41,4.5152]
[1737131606106,1.5157,221.51,221.4,17.24952658]
[1737131606305,4.5148,221.44,221.41,4.5152]
[1737131606506,4.5148,221.44,221.4,17.24952658]
[1737131606807,4.5148,221.44,221.4,4.5153]
[1737131607400,4.5142,221.47,221.38,4.5158]
[1737131607600,1.5157,221.51,221.36,17.24952658]
[1737131607908,1.5157,221.51,221.37,4.74]
[1737131608302,4.5157,221.4,221.37,4.74]
[1737131608504,17.24952658,221.5,221.32,17.24952658]
[1737131608704,17.24952658,221.5,221.33,4.74]
[1737131608903,4.5145,221.45,221.37,4.516]
[1737131609110,17.24952658,221.5,221.37,4.516]
[1737131609305,17.24952658,221.5,221.32,21.98952658]
[1737131609507,4.516,221.38,221.34,4.5166]
[1737131609811,17.24952658,221.5,221.32,21.98952658]
[1737131610012,4.5158,221.39,221.34,4.5167]
[1737131610313,17.24952658,221.5,221.34,4.5167]
[1737131611010,4.516,221.38,221.34,4.5167]
[1737131611415,17.24952658,221.5,221.32,17.24952658]
[1737131611614,17.24952658,221.46,221.29,84.56]
[1737131611808,17.24952658,221.46,221.3,4.74]
[1737131612706,4.5153,221.42,221.31,4.5174]
[1737131612913,17.24952658,221.46,221.3,4.74]
[1737131613316,4.5153,221.42,221.32,4.5171]
[1737131613510,17.24952658,221.46,221.3,4.74]
[1737131614416,9.0277,221.49,221.32,17.24952658]
[1737131614815,4.5158,221.39,221.34,4.5167]
[1737131615012,4.5158,221.39,221.32,17.24952658]
[1737131615213,9.0277,221.49,221.32,17.24952658]
[1737131616114,4.516,221.38,221.34,4.5166]
[1737131617218,4.5159,221.38,221.34,4.5166]
[1737131618715,9.0277,221.49,221.33,4.517]
[1737131618915,0.72380718,221.48,221.33,4.517]
[1737131619312,0.72380718,221.48,221.32,21.76662658]
[1737131619518,10.77441762,221.45,221.32,4.5171]
[1737131619713,1.5279,221.44,221.32,4.5171]
[1737131620921,10.77441762,221.39,221.25,10.77441762]
[1737131621124,3.1061,221.38,221.25,10.77441762]
[1737131621324,4.5184,221.27,221.25,10.77441762]
[1737131621524,4.5184,221.27,221.24,4.74]
[1737131621721,10.77441762,221.36,221.22,10.77441762]
[1737131622320,10.77441762,221.33,221.22,10.77441762]
[1737131622524,10.77441762,221.33,220.96,6.01100319]
[1737131622525,10.77441762,221.28,220.96,6.01100319]
[1737131622717,10.77441762,221.25,221.09,10.77441762]
[1737131622922,10.77441762,221.25,221.09,15.57441762]
[1737131623124,10.77441762,221.25,221.12,4.5212]
[1737131623125,4.5196,221.21,221.12,4.5212]